[Event "*** Titled Tuesday 3|2 Blitz"]
[Site "Chess.com"]
[Date "2015.12.01"]
[Round "7"]
[White "ruifeng"]
[Black "tigra"]
[Result "1-0"]
[WhiteElo "2196"]
[BlackElo "2133"]
[TimeControl "180+2"]
[EndTime "12:30:10 PST"]
[Termination "ruifeng won on time"]

1. e4 {[%clk 0:03:01.9]} 1... c5 {[%clk 0:03:00.7]} 2. Nc3 {[%clk 0:03:02.6]}
2... g6 {[%clk 0:03:01.2]} 3. g3 {[%clk 0:03:03.8]} 3... Bg7 {[%clk 0:03:02.2]}
4. Bg2 {[%clk 0:03:05.4]} 4... Nc6 {[%clk 0:03:02.9]} 5. d3 {[%clk 0:03:06.8]}
5... Nf6 {[%clk 0:03:04.4]} 6. Be3 {[%clk 0:03:07.5]} 6... d6 {[%clk 0:03:05.6]}
7. h3 {[%clk 0:03:08.3]} 7... Rb8 {[%clk 0:03:05.8]} 8. Nge2 {[%clk 0:03:09.1]}
8... b5 {[%clk 0:03:03.1]} 9. Qd2 {[%clk 0:03:10.2]} 9... b4 {[%clk 0:03:01.3]}
10. Nd1 {[%clk 0:03:10.6]} 10... a5 {[%clk 0:02:54.8]} 11. O-O {[%clk
0:03:10.8]} 11... Ba6 {[%clk 0:02:55.2]} 12. Bh6 {[%clk 0:03:09.8]} 12... O-O
{[%clk 0:02:55]} 13. Bxg7 {[%clk 0:03:10.7]} 13... Kxg7 {[%clk 0:02:56.1]} 14.
Ne3 {[%clk 0:03:11.9]} 14... a4 {[%clk 0:02:52.2]} 15. f4 {[%clk 0:03:11.1]}
15... Nd4 {[%clk 0:02:45.3]} 16. g4 {[%clk 0:03:06.6]} 16... Qb6 {[%clk
0:02:36.2]} 17. Kh1 {[%clk 0:02:59.3]} 17... e6 {[%clk 0:02:16.2]} 18. Ng3
{[%clk 0:02:56.9]} 18... b3 {[%clk 0:02:08.2]} 19. axb3 {[%clk 0:02:51.1]} 19...
axb3 {[%clk 0:02:08.8]} 20. c3 {[%clk 0:02:38.8]} 20... Nc6 {[%clk 0:02:04.4]}
21. g5 {[%clk 0:02:29.3]} 21... Nd7 {[%clk 0:02:04.6]} 22. f5 {[%clk 0:02:29.8]}
22... Nde5 {[%clk 0:02:03.4]} 23. c4 {[%clk 0:02:23.6]} 23... Nd4 {[%clk
0:01:57.3]} 24. Ng4 {[%clk 0:02:15.4]} 24... Ra8 {[%clk 0:01:53.9]} 25. Ne2
{[%clk 0:01:32.4]} 25... Nc2 {[%clk 0:01:42.2]} 26. Rad1 {[%clk 0:01:16.8]}
26... Nxg4 {[%clk 0:01:37.5]} 27. hxg4 {[%clk 0:01:17.2]} 27... Bb7 {[%clk
0:01:34.1]} 28. f6+ {[%clk 0:01:09.4]} 28... Kg8 {[%clk 0:01:18.8]} 29. Qf4
{[%clk 0:01:10.3]} 29... Rfb8 {[%clk 0:00:18.3]} 30. Qh2 {[%clk 0:01:10.5]}
30... Qd8 {[%clk 0:00:18]} 31. Rf3 {[%clk 0:01:10.5]} 31... Kh8 {[%clk
0:00:03.8]} 32. Rh3 {[%clk 0:00:55.7]} 32... Qg8 {[%clk 0:00:05.4]} 33. Qxd6
{[%clk 0:00:50.4]} 33... Ra2 {[%clk 0:00:06.2]} 34. Kh2 {[%clk 0:00:43.2]} 34...
Rxb2 {[%clk 0:00:07]} 35. Rh1 {[%clk 0:00:43.6]} 35... Rd8 {[%clk 0:00:04.6]}
36. Qf4 {[%clk 0:00:36.4]} 36... Nb4 {[%clk 0:00:03.5]} 37. Kg1 {[%clk 0:00:35]}
1-0

[Event "*** Titled Tuesday 3|2 Blitz"]
[Site "Chess.com"]
[Date "2015.12.01"]
[Round "7"]
[White "AndreyOstrovskiy"]
[Black "Colombiano07"]
[Result "1-0"]
[WhiteElo "2431"]
[BlackElo "2113"]
[TimeControl "180+2"]
[EndTime "12:30:33 PST"]
[Termination "AndreyOstrovskiy won by checkmate"]

1. e4 {[%clk 0:03:01.9]} 1... g6 {[%clk 0:02:13.7]} 2. d4 {[%clk 0:03:01.9]}
2... Bg7 {[%clk 0:02:14.1]} 3. c3 {[%clk 0:03:02.1]} 3... d5 {[%clk 0:02:14.8]}
4. e5 {[%clk 0:03:02.8]} 4... Bf5 {[%clk 0:02:13.1]} 5. Qb3 {[%clk 0:02:56.5]}
5... b6 {[%clk 0:02:12]} 6. Nf3 {[%clk 0:02:52.3]} 6... h5 {[%clk 0:02:08.4]} 7.
h3 {[%clk 0:02:47.6]} 7... h4 {[%clk 0:02:08.7]} 8. a4 {[%clk 0:02:45.8]} 8...
a6 {[%clk 0:02:07.1]} 9. Be2 {[%clk 0:02:40.9]} 9... e6 {[%clk 0:02:07.5]} 10.
Bg5 {[%clk 0:02:37.3]} 10... f6 {[%clk 0:02:04.6]} 11. Bxh4 {[%clk 0:02:28]}
11... Rxh4 {[%clk 0:01:41.1]} 12. Nxh4 {[%clk 0:02:28.5]} 12... fxe5 {[%clk
0:01:42.7]} 13. Nxf5 {[%clk 0:02:27.2]} 13... gxf5 {[%clk 0:01:35.7]} 14. dxe5
{[%clk 0:02:26.6]} 14... Bxe5 {[%clk 0:01:36.5]} 15. Nd2 {[%clk 0:02:21.1]}
15... Nf6 {[%clk 0:01:34.7]} 16. Nf3 {[%clk 0:02:21.7]} 16... Bd6 {[%clk
0:01:36]} 17. O-O-O {[%clk 0:02:19.1]} 17... Nc6 {[%clk 0:01:35.3]} 18. g4
{[%clk 0:02:18.1]} 18... fxg4 {[%clk 0:01:34.2]} 19. hxg4 {[%clk 0:02:19.3]}
19... Nxg4 {[%clk 0:01:35.4]} 20. Rh8+ {[%clk 0:02:16.7]} 20... Bf8 {[%clk
0:01:36.5]} 21. Nd4 {[%clk 0:01:37.8]} 21... Nxd4 {[%clk 0:01:30.5]} 22. Rxd4
{[%clk 0:01:31.4]} 22... Qg5+ {[%clk 0:01:13.1]} 23. f4 {[%clk 0:01:30.1]} 23...
Qg7 {[%clk 0:01:11.2]} 24. Rh1 {[%clk 0:01:26.8]} 24... Bc5 {[%clk 0:00:59.7]}
25. Rdd1 {[%clk 0:01:18]} 25... Nf2 {[%clk 0:00:46.8]} 26. Rdg1 {[%clk
0:01:16.6]} 26... Nd3+ {[%clk 0:00:47.8]} 27. Bxd3 {[%clk 0:01:14]} 27... Bxg1
{[%clk 0:00:49.7]} 28. Bxa6 {[%clk 0:01:09.9]} 28... Ke7 {[%clk 0:00:36.4]} 29.
Bd3 {[%clk 0:01:08.6]} 29... Rh8 {[%clk 0:00:32.4]} 30. Rxh8 {[%clk 0:01:07.4]}
30... Qxh8 {[%clk 0:00:34.3]} 31. f5 {[%clk 0:00:58.7]} 31... Qh1 {[%clk
0:00:30.4]} 32. Kb1 {[%clk 0:00:56.6]} 32... Qf3 {[%clk 0:00:28.9]} 33. Qc2
{[%clk 0:00:53.3]} 33... e5 {[%clk 0:00:26.9]} 34. c4 {[%clk 0:00:50.3]} 34...
e4 {[%clk 0:00:24.1]} 35. Be2 {[%clk 0:00:51.5]} 35... Qxf5 {[%clk 0:00:24.5]}
36. cxd5 {[%clk 0:00:53]} 36... Qxd5 {[%clk 0:00:25.6]} 37. Qxc7+ {[%clk
0:00:53.3]} 37... Kf6 {[%clk 0:00:24.9]} 38. Qf4+ {[%clk 0:00:45.5]} 38... Qf5
{[%clk 0:00:20.2]} 39. Qd6+ {[%clk 0:00:46.1]} 39... Qe6 {[%clk 0:00:17.7]} 40.
Qf8+ {[%clk 0:00:46.3]} 40... Ke5 {[%clk 0:00:18]} 41. Qg7+ {[%clk 0:00:45.7]}
41... Kd5 {[%clk 0:00:17.4]} 42. Qxg1 {[%clk 0:00:46]} 42... e3 {[%clk
0:00:18.7]} 43. Qd1+ {[%clk 0:00:43.6]} 43... Kc5 {[%clk 0:00:19]} 44. Qc2+
{[%clk 0:00:43.6]} 44... Kb4 {[%clk 0:00:18.3]} 45. Qc3+ {[%clk 0:00:41.8]}
45... Kxa4 {[%clk 0:00:14.6]} 46. Qa3# {[%clk 0:00:42.9]} 1-0

[Event "*** Titled Tuesday 3|2 Blitz"]
[Site "Chess.com"]
[Date "2015.12.01"]
[Round "7"]
[White "stepanosinovsky"]
[Black "chessmaxusa"]
[Result "0-1"]
[WhiteElo "2202"]
[BlackElo "2321"]
[TimeControl "180+2"]
[EndTime "12:30:36 PST"]
[Termination "chessmaxusa won on time"]

1. e4 {[%clk 0:03:01.9]} 1... c6 {[%clk 0:03:00.4]} 2. d3 {[%clk 0:02:58.5]}
2... d5 {[%clk 0:03:01.8]} 3. Nd2 {[%clk 0:02:58.6]} 3... g6 {[%clk 0:02:58.4]}
4. Ngf3 {[%clk 0:02:57.9]} 4... Bg7 {[%clk 0:02:59.9]} 5. g3 {[%clk 0:02:57.7]}
5... Nf6 {[%clk 0:03:00.7]} 6. Bg2 {[%clk 0:02:58.7]} 6... O-O {[%clk
0:03:01.3]} 7. O-O {[%clk 0:03:00.2]} 7... Ne8 {[%clk 0:02:52.2]} 8. Re1 {[%clk
0:02:54.6]} 8... Nc7 {[%clk 0:02:52.3]} 9. c3 {[%clk 0:02:33.2]} 9... dxe4
{[%clk 0:02:50.5]} 10. dxe4 {[%clk 0:02:33.9]} 10... Ne6 {[%clk 0:02:51.6]} 11.
Qe2 {[%clk 0:02:27.2]} 11... a5 {[%clk 0:02:48.4]} 12. h4 {[%clk 0:02:22.4]}
12... Na6 {[%clk 0:02:49]} 13. h5 {[%clk 0:02:22.7]} 13... Nac5 {[%clk
0:02:49.9]} 14. Nc4 {[%clk 0:02:10.9]} 14... Qd3 {[%clk 0:02:44.8]} 15. hxg6
{[%clk 0:02:03.2]} 15... hxg6 {[%clk 0:02:45.1]} 16. Nb6 {[%clk 0:01:55.3]}
16... Rb8 {[%clk 0:02:35.1]} 17. Qxd3 {[%clk 0:01:18.9]} 17... Nxd3 {[%clk
0:02:35.2]} 18. Rd1 {[%clk 0:01:19.7]} 18... Nxc1 {[%clk 0:02:31.3]} 19. Raxc1
{[%clk 0:01:21.6]} 19... Nc5 {[%clk 0:02:32.1]} 20. Nxc8 {[%clk 0:01:15.8]}
20... Rfxc8 {[%clk 0:02:31.9]} 21. Nd4 {[%clk 0:01:06.6]} 21... a4 {[%clk
0:02:13.8]} 22. Kf1 {[%clk 0:01:01.1]} 22... Rd8 {[%clk 0:02:14]} 23. Ke2 {[%clk
0:01:01.7]} 23... Bh6 {[%clk 0:01:46.5]} 24. Rb1 {[%clk 0:00:44.5]} 24... Bg7
{[%clk 0:01:27.8]} 25. Nc2 {[%clk 0:00:43.4]} 25... Ne6 {[%clk 0:01:21.6]} 26.
f4 {[%clk 0:00:39.9]} 26... Kf8 {[%clk 0:01:16.8]} 27. Rxd8+ {[%clk 0:00:39.2]}
27... Nxd8 {[%clk 0:01:14]} 28. Rd1 {[%clk 0:00:38.6]} 28... Ke8 {[%clk
0:01:14.5]} 29. e5 {[%clk 0:00:31.4]} 29... Ra8 {[%clk 0:01:12.3]} 30. Nd4
{[%clk 0:00:15.6]} 30... Ra5 {[%clk 0:01:03.6]} 31. Bf3 {[%clk 0:00:13.4]} 31...
f6 {[%clk 0:01:02]} 32. exf6 {[%clk 0:00:11]} 32... Bxf6 {[%clk 0:01:02.8]} 33.
Nc2 {[%clk 0:00:11.5]} 33... g5 {[%clk 0:00:53.2]} 34. Rd2 {[%clk 0:00:08.2]}
34... Nf7 {[%clk 0:00:49.3]} 35. Ne3 {[%clk 0:00:08.2]} 35... Nd6 {[%clk
0:00:48.5]} 36. Bh5+ {[%clk 0:00:08.9]} 36... Kf8 {[%clk 0:00:47.8]} 37. Bf3
{[%clk 0:00:07.7]} 37... gxf4 {[%clk 0:00:42.8]} 38. gxf4 {[%clk 0:00:08.5]}
38... a3 {[%clk 0:00:42]} 39. b4 {[%clk 0:00:05.1]} 39... Ra8 {[%clk 0:00:41.7]}
40. Rc2 {[%clk 0:00:04.4]} 40... Nb5 {[%clk 0:00:42.6]} 0-1

[Event "*** Titled Tuesday 3|2 Blitz"]
[Site "Chess.com"]
[Date "2015.12.01"]
[Round "7"]
[White "motivated_bishop"]
[Black "BakaPG"]
[Result "1-0"]
[WhiteElo "2294"]
[BlackElo "2461"]
[TimeControl "180+2"]
[EndTime "12:30:40 PST"]
[Termination "motivated_bishop won by resignation"]

1. d4 {[%clk 0:02:27.4]} 1... c5 {[%clk 0:02:54.6]} 2. d5 {[%clk 0:02:28]} 2...
e5 {[%clk 0:02:54.2]} 3. e4 {[%clk 0:02:27.7]} 3... d6 {[%clk 0:02:53.9]} 4. Nc3
{[%clk 0:02:28.7]} 4... Be7 {[%clk 0:02:54.6]} 5. Bb5+ {[%clk 0:02:25.4]} 5...
Nd7 {[%clk 0:02:55.1]} 6. a4 {[%clk 0:02:25.9]} 6... a6 {[%clk 0:02:54.5]} 7.
Be2 {[%clk 0:02:22.1]} 7... b6 {[%clk 0:02:55.1]} 8. Nf3 {[%clk 0:02:20.2]} 8...
Ngf6 {[%clk 0:02:55.4]} 9. O-O {[%clk 0:02:19.6]} 9... O-O {[%clk 0:02:55.9]}
10. h3 {[%clk 0:02:14.8]} 10... Ne8 {[%clk 0:02:55.7]} 11. Be3 {[%clk 0:02:15]}
11... Kh8 {[%clk 0:02:52.1]} 12. Nd2 {[%clk 0:02:14.8]} 12... Bg5 {[%clk
0:02:50.8]} 13. Nc4 {[%clk 0:01:50.8]} 13... Bxe3 {[%clk 0:02:49.2]} 14. fxe3
{[%clk 0:01:51.8]} 14... Rb8 {[%clk 0:02:41.7]} 15. Bg4 {[%clk 0:01:49.3]} 15...
Qe7 {[%clk 0:02:38.6]} 16. Qe2 {[%clk 0:01:36.5]} 16... g6 {[%clk 0:02:36.1]}
17. Rf2 {[%clk 0:01:27.2]} 17... Nef6 {[%clk 0:02:17.2]} 18. Bf3 {[%clk
0:01:16.8]} 18... Kg7 {[%clk 0:02:11.7]} 19. Ra3 {[%clk 0:01:16]} 19... h5
{[%clk 0:02:02.4]} 20. Rb3 {[%clk 0:01:15.5]} 20... Rh8 {[%clk 0:01:54.1]} 21.
Qf1 {[%clk 0:01:14.8]} 21... g5 {[%clk 0:01:49.7]} 22. Be2 {[%clk 0:01:12.8]}
22... g4 {[%clk 0:01:39.2]} 23. h4 {[%clk 0:00:58.3]} 23... Rh6 {[%clk 0:01:26]}
24. g3 {[%clk 0:00:57.6]} 24... Rg6 {[%clk 0:01:26]} 25. Rf5 {[%clk 0:00:53.1]}
25... Kh6 {[%clk 0:00:59.5]} 26. Na3 {[%clk 0:00:50.1]} 26... c4 {[%clk
0:00:46.6]} 27. Nxc4 {[%clk 0:00:49.1]} 27... b5 {[%clk 0:00:38.6]} 28. Na5
{[%clk 0:00:32.9]} 28... Bb7 {[%clk 0:00:19.6]} 29. axb5 {[%clk 0:00:20.5]}
29... Nc5 {[%clk 0:00:18.6]} 30. Rb4 {[%clk 0:00:19]} 30... Ba8 {[%clk
0:00:18.5]} 31. b6 {[%clk 0:00:18.5]} 31... Qd8 {[%clk 0:00:15]} 32. Nc6 {[%clk
0:00:17.7]} 32... Bxc6 {[%clk 0:00:14.5]} 33. dxc6 {[%clk 0:00:19.6]} 33... Rxb6
{[%clk 0:00:13.6]} 34. Rxb6 {[%clk 0:00:19.9]} 34... Qxb6 {[%clk 0:00:14]} 35.
Rxf6 {[%clk 0:00:21.4]} 35... Ne6 {[%clk 0:00:13.9]} 36. Rxg6+ {[%clk
0:00:21.1]} 36... Kxg6 {[%clk 0:00:13.1]} 37. Qf5+ {[%clk 0:00:21.8]} 37... Kg7
{[%clk 0:00:13.9]} 38. Nd5 {[%clk 0:00:21.9]} 38... Qxb2 {[%clk 0:00:12.9]} 39.
Qf6+ {[%clk 0:00:22.9]} 39... Kg8 {[%clk 0:00:12.1]} 40. c7 {[%clk 0:00:24.1]}
40... Qxc2 {[%clk 0:00:10.9]} 41. c8=Q+ {[%clk 0:00:22.8]} 1-0

[Event "*** Titled Tuesday 3|2 Blitz"]
[Site "Chess.com"]
[Date "2015.12.01"]
[Round "7"]
[White "Frolyanov_D"]
[Black "Konavets"]
[Result "1-0"]
[WhiteElo "2516"]
[BlackElo "2524"]
[TimeControl "180+2"]
[EndTime "12:30:51 PST"]
[Termination "Frolyanov_D won on time"]

1. d4 {[%clk 0:03:01.9]} 1... Nf6 {[%clk 0:03:01.2]} 2. c4 {[%clk 0:03:02.3]}
2... g6 {[%clk 0:03:02.4]} 3. Nf3 {[%clk 0:03:01.9]} 3... Bg7 {[%clk 0:03:03.6]}
4. g3 {[%clk 0:03:03.4]} 4... O-O {[%clk 0:03:03.5]} 5. Bg2 {[%clk 0:03:04.7]}
5... c5 {[%clk 0:03:05.4]} 6. O-O {[%clk 0:03:04.5]} 6... cxd4 {[%clk
0:03:06.5]} 7. Nxd4 {[%clk 0:03:05.4]} 7... d5 {[%clk 0:03:08]} 8. cxd5 {[%clk
0:03:05.9]} 8... Nxd5 {[%clk 0:03:09.9]} 9. Nc3 {[%clk 0:03:07]} 9... Nxc3
{[%clk 0:03:10]} 10. bxc3 {[%clk 0:03:08.9]} 10... Nc6 {[%clk 0:03:11.9]} 11.
Be3 {[%clk 0:02:50.4]} 11... Na5 {[%clk 0:03:13.1]} 12. Qa4 {[%clk 0:02:43.4]}
12... Bd7 {[%clk 0:03:12.2]} 13. Qb4 {[%clk 0:02:35.1]} 13... Rc8 {[%clk
0:03:01.4]} 14. Rfd1 {[%clk 0:02:33.4]} 14... Rc4 {[%clk 0:03:02.1]} 15. Qb2
{[%clk 0:02:30.9]} 15... Qc8 {[%clk 0:03:02.1]} 16. Rac1 {[%clk 0:02:25.3]}
16... Ba4 {[%clk 0:03:03.1]} 17. Re1 {[%clk 0:01:56.9]} 17... Rd8 {[%clk
0:03:02]} 18. Qa3 {[%clk 0:01:51.5]} 18... Bf8 {[%clk 0:02:58]} 19. Nb3 {[%clk
0:01:49.6]} 19... Nc6 {[%clk 0:02:44]} 20. Nd2 {[%clk 0:01:47.1]} 20... e6
{[%clk 0:02:32.5]} 21. Qb2 {[%clk 0:01:44.4]} 21... Rg4 {[%clk 0:01:27.2]} 22.
h3 {[%clk 0:01:42.4]} 22... Rxd2 {[%clk 0:01:18.6]} 23. Qxd2 {[%clk 0:01:38.2]}
23... Rc4 {[%clk 0:01:19.6]} 24. Bd4 {[%clk 0:01:27.3]} 24... Nxd4 {[%clk
0:01:12.1]} 25. cxd4 {[%clk 0:01:26.9]} 25... Bb4 {[%clk 0:01:13.1]} 26. Rxc4
{[%clk 0:01:25.3]} 26... Qxc4 {[%clk 0:01:12.6]} 27. Rc1 {[%clk 0:01:23.6]}
27... Qb5 {[%clk 0:00:35.6]} 28. Rc8+ {[%clk 0:01:20.6]} 28... Kg7 {[%clk
0:00:35.9]} 29. Qe3 {[%clk 0:01:21.2]} 29... Bd6 {[%clk 0:00:35]} 30. d5 {[%clk
0:01:15.9]} 30... e5 {[%clk 0:00:21.7]} 31. h4 {[%clk 0:00:58.7]} 31... b6
{[%clk 0:00:11.3]} 32. h5 {[%clk 0:00:54]} 32... Qb1+ {[%clk 0:00:12.4]} 33. Rc1
{[%clk 0:00:47.6]} 33... Qf5 {[%clk 0:00:12.2]} 34. h6+ {[%clk 0:00:40.8]} 34...
Kf6 {[%clk 0:00:12.9]} 35. Be4 {[%clk 0:00:34.3]} 35... Qh3 {[%clk 0:00:09]} 36.
Qf3+ {[%clk 0:00:33]} 36... Ke7 {[%clk 0:00:10]} 37. e3 {[%clk 0:00:21.7]} 37...
Bd7 {[%clk 0:00:10.1]} 38. Bd3 {[%clk 0:00:19.6]} 38... Qxh6 {[%clk 0:00:10.5]}
39. Bf1 {[%clk 0:00:20.2]} 39... Qf8 {[%clk 0:00:09]} 40. Qe4 {[%clk 0:00:18.4]}
40... h5 {[%clk 0:00:09.7]} 41. Qh4+ {[%clk 0:00:18.9]} 41... f6 {[%clk
0:00:08.7]} 42. Bh3 {[%clk 0:00:19.8]} 1-0

[Event "*** Titled Tuesday 3|2 Blitz"]
[Site "Chess.com"]
[Date "2015.12.01"]
[Round "7"]
[White "GeorgMeier"]
[Black "KNVB"]
[Result "1-0"]
[WhiteElo "2628"]
[BlackElo "2359"]
[TimeControl "180+2"]
[EndTime "12:31:01 PST"]
[Termination "GeorgMeier won by resignation"]

1. Nf3 {[%clk 0:03:01.2]} 1... Nf6 {[%clk 0:02:59.6]} 2. g3 {[%clk 0:03:02.3]}
2... b6 {[%clk 0:03:00.5]} 3. Bg2 {[%clk 0:03:03.4]} 3... Bb7 {[%clk 0:03:01.9]}
4. O-O {[%clk 0:03:04.5]} 4... c5 {[%clk 0:03:03.3]} 5. c4 {[%clk 0:03:05.4]}
5... e6 {[%clk 0:03:03.9]} 6. Nc3 {[%clk 0:03:06.3]} 6... a6 {[%clk 0:03:04.8]}
7. d4 {[%clk 0:03:06.4]} 7... cxd4 {[%clk 0:03:06.1]} 8. Qxd4 {[%clk 0:03:08.3]}
8... d6 {[%clk 0:03:07.2]} 9. Bg5 {[%clk 0:03:04.8]} 9... Nbd7 {[%clk
0:03:06.7]} 10. Qd2 {[%clk 0:03:05.8]} 10... Qc7 {[%clk 0:02:22.1]} 11. b3
{[%clk 0:03:03.2]} 11... Be7 {[%clk 0:02:20.6]} 12. Rfd1 {[%clk 0:03:03.4]}
12... O-O {[%clk 0:02:20.9]} 13. Bf4 {[%clk 0:03:02.2]} 13... Ne8 {[%clk
0:02:21.9]} 14. Rac1 {[%clk 0:03:02.8]} 14... Rd8 {[%clk 0:02:18.2]} 15. Qe3
{[%clk 0:02:48]} 15... Qb8 {[%clk 0:01:32.6]} 16. Nd5 {[%clk 0:02:43.2]} 16...
Bxd5 {[%clk 0:01:33.5]} 17. cxd5 {[%clk 0:02:43.4]} 17... e5 {[%clk 0:01:34.9]}
18. Bh3 {[%clk 0:01:56.7]} 18... exf4 {[%clk 0:01:13.4]} 19. Qxe7 {[%clk
0:01:56.3]} 19... Nef6 {[%clk 0:01:14.9]} 20. Rc6 {[%clk 0:01:30.2]} 20... fxg3
{[%clk 0:01:08.6]} 21. hxg3 {[%clk 0:01:22.4]} 21... Nc5 {[%clk 0:00:48.2]} 22.
Qc7 {[%clk 0:01:16.1]} 22... Nce4 {[%clk 0:00:13.5]} 23. Qxb6 {[%clk 0:01:10.8]}
23... Qxb6 {[%clk 0:00:11.5]} 24. Rxb6 {[%clk 0:01:11.5]} 24... Nc3 {[%clk
0:00:13.3]} 25. Rd2 {[%clk 0:01:12.5]} 25... a5 {[%clk 0:00:10.4]} 26. Ra6
{[%clk 0:01:07]} 26... Ra8 {[%clk 0:00:09.1]} 27. Rxa8 {[%clk 0:01:00.6]} 27...
Rxa8 {[%clk 0:00:11]} 28. Nd4 {[%clk 0:01:01.6]} 28... Ncxd5 {[%clk 0:00:06.7]}
29. Nb5 {[%clk 0:00:54.4]} 29... Nb4 {[%clk 0:00:04.2]} 30. a3 {[%clk
0:00:50.7]} 30... Na6 {[%clk 0:00:04]} 31. Nxd6 {[%clk 0:00:43.5]} 31... Rb8
{[%clk 0:00:05.2]} 32. Nc4 {[%clk 0:00:43.2]} 32... g6 {[%clk 0:00:03.6]} 33.
Nxa5 {[%clk 0:00:44.3]} 33... Nc5 {[%clk 0:00:04.3]} 34. b4 {[%clk 0:00:45.5]}
34... Nce4 {[%clk 0:00:05.8]} 35. Rc2 {[%clk 0:00:46.7]} 35... Kg7 {[%clk
0:00:06.6]} 36. Bg2 {[%clk 0:00:43.5]} 36... Nd6 {[%clk 0:00:06.8]} 37. Bc6
{[%clk 0:00:40.1]} 37... Ng4 {[%clk 0:00:06.5]} 38. Rd2 {[%clk 0:00:38.5]} 38...
Nf5 {[%clk 0:00:04.4]} 39. Bd7 {[%clk 0:00:35.6]} 39... Rd8 {[%clk 0:00:05.2]}
40. Nc6 {[%clk 0:00:35.9]} 40... Ra8 {[%clk 0:00:04.5]} 41. Bxf5 {[%clk
0:00:36.5]} 41... gxf5 {[%clk 0:00:06.4]} 42. Rd3 {[%clk 0:00:36.5]} 42... Nf6
{[%clk 0:00:04.6]} 43. Ne7 {[%clk 0:00:34.6]} 43... Ne4 {[%clk 0:00:03.5]} 44.
Nxf5+ {[%clk 0:00:35.4]} 44... Kf6 {[%clk 0:00:05]} 45. Nd6 {[%clk 0:00:36.3]}
45... Ng5 {[%clk 0:00:04.7]} 46. b5 {[%clk 0:00:37.3]} 46... Ne6 {[%clk
0:00:05.1]} 47. b6 {[%clk 0:00:38.6]} 47... Nc5 {[%clk 0:00:04.4]} 48. Rc3
{[%clk 0:00:39.1]} 48... Na4 {[%clk 0:00:04]} 49. b7 {[%clk 0:00:39.5]} 1-0

[Event "*** Titled Tuesday 3|2 Blitz"]
[Site "Chess.com"]
[Date "2015.12.01"]
[Round "7"]
[White "Fandorine"]
[Black "LyonBeast"]
[Result "0-1"]
[WhiteElo "2575"]
[BlackElo "2743"]
[TimeControl "180+2"]
[EndTime "12:31:08 PST"]
[Termination "LyonBeast won on time"]

1. e4 {[%clk 0:03:01.9]} 1... c5 {[%clk 0:02:55.9]} 2. b3 {[%clk 0:03:02.9]}
2... g6 {[%clk 0:02:55.4]} 3. Bb2 {[%clk 0:03:04]} 3... Nf6 {[%clk 0:02:55.8]}
4. h4 {[%clk 0:02:54.5]} 4... Bg7 {[%clk 0:02:52.1]} 5. e5 {[%clk 0:02:55.5]}
5... Nd5 {[%clk 0:02:49.7]} 6. h5 {[%clk 0:02:50.6]} 6... Nc6 {[%clk 0:02:49.9]}
7. Nf3 {[%clk 0:02:46.6]} 7... d6 {[%clk 0:02:47.1]} 8. Bb5 {[%clk 0:02:37.8]}
8... Bg4 {[%clk 0:02:42]} 9. h6 {[%clk 0:02:11.8]} 9... Bxe5 {[%clk 0:02:41]}
10. Nxe5 {[%clk 0:02:12.8]} 10... Bxd1 {[%clk 0:02:41.3]} 11. Nxc6 {[%clk
0:02:14.1]} 11... Qb6 {[%clk 0:02:32]} 12. Nxa7+ {[%clk 0:01:55.7]} 12... Kd8
{[%clk 0:02:20.6]} 13. Bxh8 {[%clk 0:01:56.6]} 13... Bxc2 {[%clk 0:02:02.9]} 14.
Bc4 {[%clk 0:01:57.7]} 14... Bxb1 {[%clk 0:02:03.3]} 15. Rxb1 {[%clk 0:01:48.7]}
15... Nf4 {[%clk 0:01:48.9]} 16. Nb5 {[%clk 0:00:57.2]} 16... d5 {[%clk
0:01:41.3]} 17. Bf1 {[%clk 0:00:58.3]} 17... Qe6+ {[%clk 0:01:13]} 18. Kd1
{[%clk 0:00:59]} 18... f6 {[%clk 0:01:04.5]} 19. a4 {[%clk 0:00:52.1]} 19... Qf5
{[%clk 0:01:01.1]} 20. Rc1 {[%clk 0:00:50.3]} 20... Nd3 {[%clk 0:00:59.5]} 21.
Bxd3 {[%clk 0:00:47.2]} 21... Qxd3 {[%clk 0:01:01.4]} 22. Rh3 {[%clk 0:00:40.9]}
22... Qf1+ {[%clk 0:01:01.5]} 23. Kc2 {[%clk 0:00:42.2]} 23... Qxg2 {[%clk
0:01:01.7]} 24. Rc3 {[%clk 0:00:38.9]} 24... b6 {[%clk 0:00:58.4]} 25. d4 {[%clk
0:00:20.8]} 25... Qxf2+ {[%clk 0:00:33.8]} 26. Kb1 {[%clk 0:00:21.9]} 26... c4
{[%clk 0:00:28.3]} 27. Bg7 {[%clk 0:00:19.4]} 27... cxb3 {[%clk 0:00:26]} 28.
Rxb3 {[%clk 0:00:20.7]} 28... Rxa4 {[%clk 0:00:26.1]} 29. Nc3 {[%clk 0:00:22.3]}
29... Rc4 {[%clk 0:00:19.2]} 30. Rb5 {[%clk 0:00:21.9]} 30... Rxd4 {[%clk
0:00:11.5]} 31. Rxb6 {[%clk 0:00:14.7]} 31... Kd7 {[%clk 0:00:09.3]} 32. Rb7+
{[%clk 0:00:12.6]} 32... Ke6 {[%clk 0:00:10.1]} 33. Bf8 {[%clk 0:00:13.7]} 33...
Kf5 {[%clk 0:00:10.7]} 34. Bxe7 {[%clk 0:00:11.3]} 34... Kg5 {[%clk 0:00:09.5]}
35. Rb6 {[%clk 0:00:09.7]} 35... Kg4 {[%clk 0:00:06.6]} 36. Bxf6 {[%clk
0:00:04.6]} 36... Rd3 {[%clk 0:00:05.1]} 37. Rb4+ {[%clk 0:00:05.7]} 37... d4
{[%clk 0:00:05.6]} 38. Nd5 {[%clk 0:00:03.4]} 38... Qf5 {[%clk 0:00:06.1]} 39.
Rb5 {[%clk 0:00:02.4]} 39... Rb3+ {[%clk 0:00:06.7]} 40. Ka1 {[%clk 0:00:04]}
40... Rxb5 {[%clk 0:00:08.3]} 41. Rg1+ {[%clk 0:00:05.1]} 41... Kh3 {[%clk
0:00:09.4]} 0-1